bitfinex/quotes_BTCUSD_20250215
["timestamp","ask_amount","ask_price","bid_price","bid_amount"]
[1739625925986,0.00022366,97787.0,97786.0,0.5657229]
[1739625926443,0.00522366,97787.0,97786.0,0.5657229]
[1739625926866,0.00022366,97787.0,97786.0,0.5657229]
[1739625931406,0.00022366,97787.0,97786.0,0.5667229]
[1739625934008,0.00022366,97787.0,97786.0,0.7691629]
[1739625944101,0.00022366,97787.0,97786.0,1.0938629]
[1739625955372,0.00022366,97787.0,97786.0,1.0444629]
[1739625955795,0.00022366,97787.0,97786.0,0.9614629]
[1739625957903,0.00022366,97787.0,97786.0,0.83595925]
[1739625958317,0.00022366,97787.0,97786.0,0.85895925]
[1739625958532,0.00022366,97787.0,97786.0,0.85795925]
[1739625958937,0.00022366,97787.0,97786.0,0.85895925]
[1739625959111,0.00022366,97787.0,97786.0,0.85795925]
[1739625959710,0.00022366,97787.0,97786.0,0.9604629]
[1739625959918,0.00022366,97787.0,97786.0,1.0433629]
[1739625960549,0.00022366,97787.0,97786.0,1.0443629]
[1739625961356,0.00022366,97787.0,97786.0,1.0433629]
[1739625961752,0.00022366,97787.0,97786.0,1.0443629]
[1739625961945,0.00022366,97787.0,97786.0,0.7196629]
[1739625962591,0.00022366,97787.0,97786.0,0.53425925]
[1739625963228,0.00022366,97787.0,97786.0,0.51125925]
[1739625963848,0.00022366,97787.0,97786.0,0.36125925]
[1739625964056,0.00022366,97787.0,97786.0,0.36025925]
[1739625964266,0.00022366,97787.0,97786.0,0.38325925]
[1739625964475,0.00022366,97787.0,97786.0,0.38425925]
[1739625964679,0.00022366,97787.0,97786.0,0.38325925]
[1739625965103,0.00222366,97787.0,97786.0,0.38325925]
[1739625965291,0.00022366,97787.0,97786.0,0.38325925]
[1739625965711,0.00622366,97787.0,97786.0,0.38325925]
[1739625971990,0.00622366,97787.0,97786.0,0.6357629]
[1739625973044,0.00222366,97787.0,97786.0,0.6357629]
[1739625973462,0.00022366,97787.0,97786.0,0.6357629]
[1739625973794,0.00022366,97787.0,97786.0,0.6367629]
[1739625974643,0.00022366,97787.0,97786.0,0.7192629]
[1739625979769,0.00022366,97787.0,97786.0,1.0439629]
[1739625979965,0.00022366,97787.0,97786.0,1.0429629]
[1739625980610,0.00022366,97787.0,97786.0,1.0449629]
[1739625981022,0.00022366,97787.0,97786.0,1.0459629]
[1739625992527,3.2e-07,97790.0,97789.0,0.303391]
[1739625992738,3.2e-07,97790.0,97789.0,0.42889465]
[1739625992934,3.2e-07,97790.0,97789.0,0.43317917]
[1739625993273,3.2e-07,97790.0,97789.0,0.75787917]
[1739625993479,3.2e-07,97790.0,97789.0,0.76787917]
[1739625993679,3.2e-07,97790.0,97789.0,0.79836142]
[1739625994513,3.2e-07,97790.0,97789.0,0.80036142]
[1739625995576,3.2e-07,97790.0,97789.0,0.79936142]
[1739625995772,3.2e-07,97790.0,97789.0,0.80236142]
[1739625996163,0.00022366,97814.0,97813.0,0.153353]
[1739625996423,0.00029024,97814.0,97813.0,0.48125665]
[1739625996654,0.00029024,97814.0,97813.0,0.48552455]
[1739625997568,0.00329024,97814.0,97813.0,0.48552455]
[1739625997904,0.00729024,97814.0,97813.0,0.48552455]
[1739626011425,0.00729024,97814.0,97813.0,0.2066679]
[1739626011426,0.08999024,97814.0,97813.0,0.2066679]
[1739626011645,0.29274224,97814.0,97813.0,0.2066679]
[1739626011853,0.29274224,97814.0,97813.0,0.2024]
[1739626012271,0.29274224,97814.0,97813.0,0.20697022]
[1739626012487,0.28874224,97814.0,97813.0,0.20697022]
[1739626012684,0.28574224,97814.0,97813.0,0.20697022]
[1739626012889,0.29274224,97814.0,97813.0,0.20697022]
[1739626013339,0.28574224,97814.0,97813.0,0.20697022]
[1739626013746,0.29974224,97814.0,97813.0,0.20697022]
[1739626014164,0.40224589,97814.0,97813.0,0.20697022]
[1739626015002,0.39524589,97814.0,97813.0,0.20697022]
[1739626015216,0.40224589,97814.0,97813.0,0.20697022]
[1739626015412,0.38824589,97814.0,97813.0,0.20697022]
[1739626015823,0.40224589,97814.0,97813.0,0.20697022]
[1739626018773,0.40224589,97814.0,97813.0,0.2024]
[1739626029964,0.24889389,97814.0,97790.0,0.09228085]
[1739626030098,0.153375,97800.0,97790.0,0.24566985]
[1739626030303,0.153375,97800.0,97791.0,0.00463983]
[1739626030522,0.0009898,97810.0,97791.0,0.00463983]
[1739626030760,0.00127822,97809.0,97791.0,0.00463983]
[1739626030991,0.00127822,97809.0,97790.0,0.09228085]
[1739626031198,0.00127822,97809.0,97791.0,0.00464088]
[1739626031670,0.153376,97799.0,97791.0,0.00464088]
[1739626032584,0.153377,97798.0,97791.0,0.00464088]
[1739626034756,0.204499,97800.0,97791.0,0.00464088]
[1739626034929,0.153386,97792.0,97791.0,0.00464088]
[1739626035128,0.17512881,97792.0,97791.0,0.00464088]
[1739626035329,0.17512881,97792.0,97790.0,0.0001065]
[1739626035585,0.00127838,97791.0,97790.0,0.0001065]
[1739626035735,0.17512884,97792.0,97790.0,0.0001065]
[1739626036571,0.18212884,97792.0,97790.0,0.0001065]
[1739626037777,0.18912884,97792.0,97790.0,0.0001065]
[1739626038146,0.16866437,97792.0,97790.0,0.0001065]
[1739626038980,0.00127837,97791.0,97790.0,0.0001065]
[1739626040170,0.00827837,97791.0,97790.0,0.0001065]
[1739626041369,0.01527837,97791.0,97790.0,0.0001065]
[1739626047341,0.16866637,97791.0,97790.0,0.0001065]
[1739626048125,0.59437002,97791.0,97790.0,0.0001065]
[1739626048336,0.67569165,97791.0,97790.0,0.0001065]
[1739626049879,0.66869165,97791.0,97790.0,0.0001065]
[1739626050650,0.67569165,97791.0,97790.0,0.0001065]
[1739626051888,0.66869165,97791.0,97790.0,0.0001065]
[1739626052201,0.67569165,97791.0,97790.0,0.0001065]
[1739626052824,0.66869165,97791.0,97790.0,0.0001065]
[1739626053201,0.67569165,97791.0,97790.0,0.0001065]
[1739626053613,0.66869165,97791.0,97790.0,0.0001065]
[1739626054446,0.67569165,97791.0,97790.0,0.0001065]
[1739626054671,0.66869165,97791.0,97790.0,0.0001065]
[1739626054864,0.66169165,97791.0,97790.0,0.0001065]
[1739626055057,0.66869165,97791.0,97790.0,0.0001065]
[1739626056158,0.67569165,97791.0,97790.0,0.0001065]
[1739626060442,0.67591531,97791.0,97790.0,0.0001065]
[1739626078920,0.59331531,97791.0,97790.0,0.0001065]
[1739626082118,0.68520905,97791.0,97790.0,0.0001065]
[1739626085115,0.59331531,97791.0,97790.0,0.0001065]
[1739626086421,0.33742366,97791.0,97790.0,0.0001065]
[1739626086828,0.33742366,97791.0,97790.0,0.00481844]
[1739626087029,0.33742366,97791.0,97790.0,0.0001065]
[1739626087241,0.33742366,97791.0,97790.0,0.00481844]
[1739626087441,0.33742366,97791.0,97790.0,0.0001065]
[1739626087639,0.33742366,97791.0,97790.0,0.00481886]
[1739626087778,0.33742366,97791.0,97790.0,0.0001065]
[1739626087981,0.49081166,97791.0,97790.0,0.00481886]
[1739626088231,0.49081166,97791.0,97790.0,0.0001065]
[1739626089117,0.49081166,97791.0,97790.0,0.00481886]
[1739626089312,0.49081166,97791.0,97790.0,0.0001065]
[1739626089722,0.16761166,97791.0,97790.0,0.00481886]
[1739626089929,0.16761166,97791.0,97790.0,0.0001065]
[1739626090130,0.16761166,97791.0,97790.0,0.00481886]
[1739626090995,0.01422366,97791.0,97790.0,0.00481886]
[1739626091147,0.16761166,97791.0,97790.0,0.00481886]
[1739626093669,0.01422366,97791.0,97790.0,0.00481886]
[1739626094382,0.00722366,97791.0,97790.0,0.46080786]
[1739626094582,0.00722366,97791.0,97790.0,0.56331151]
[1739626094816,0.01422366,97791.0,97790.0,0.56331151]
[1739626094993,0.00022366,97791.0,97790.0,0.56331151]
[1739626095201,0.00022366,97791.0,97790.0,0.57373558]
[1739626095399,0.00722366,97791.0,97790.0,0.57373558]
[1739626095894,0.00022366,97791.0,97790.0,0.57373558]
[1739626096581,0.00722366,97791.0,97790.0,0.57373558]
[1739626096850,0.00022366,97791.0,97790.0,0.57373558]
[1739626099983,0.00022366,97791.0,97790.0,0.57473558]
[1739626100133,0.00022366,97791.0,97790.0,0.57573558]
[1739626100350,0.00022366,97791.0,97790.0,0.57473558]
[1739626100526,0.00022366,97791.0,97790.0,0.57373558]
[1739626100725,0.00022366,97791.0,97790.0,0.57473558]
[1739626101836,0.00022366,97791.0,97790.0,0.57573558]
[1739626111599,0.00022366,97791.0,97790.0,0.77817558]
[1739626116876,0.00022366,97791.0,97790.0,0.77944134]
[1739626129551,0.00022366,97791.0,97790.0,0.80900141]
[1739626141223,0.00022366,97791.0,97790.0,0.75930141]
[1739626141428,0.00022366,97791.0,97790.0,0.67940141]
[1739626141782,0.00022366,97791.0,97790.0,0.75440141]
[1739626142212,3.2e-07,97792.0,97791.0,0.326388]
[1739626142471,3.2e-07,97792.0,97791.0,0.50525172]
[1739626142676,3.2e-07,97792.0,97791.0,0.51124448]
[1739626143256,3.2e-07,97792.0,97791.0,0.51224448]
[1739626143802,3.2e-07,97792.0,97791.0,0.51324448]
[1739626146367,3.2e-07,97792.0,97791.0,0.83794448]
[1739626151038,3.2e-07,97792.0,97791.0,0.85809125]
[1739626152894,3.2e-07,97792.0,97791.0,0.8583149]
[1739626160148,3.2e-07,97792.0,97791.0,0.8573149]
[1739626161288,3.2e-07,97792.0,97791.0,0.8603149]
[1739626162414,3.2e-07,97792.0,97791.0,0.8593149]
[1739626162608,3.2e-07,97792.0,97791.0,0.8663149]
[1739626163787,3.2e-07,97792.0,97791.0,0.79936813]
[1739626166846,0.00010682,97792.0,97791.0,0.79936813]
[1739626182869,0.00010682,97792.0,97791.0,0.88206813]
[1739626183256,0.00010682,97792.0,97791.0,5.65350813]
[1739626183455,0.00010682,97792.0,97791.0,4.11406813]
[1739626200835,0.00010682,97792.0,97791.0,4.03136813]
[1739626201040,0.00010682,97792.0,97791.0,1.10506813]
[1739626201787,0.00010682,97792.0,97791.0,1.07066813]
[1739626203864,0.00010682,97792.0,97791.0,1.05166813]
[1739626204495,0.00010682,97792.0,97791.0,1.02056813]
[1739626205469,0.00010682,97792.0,97791.0,0.79936813]
[1739626211320,0.00010682,97792.0,97791.0,0.76980806]
[1739626219736,0.00010682,97792.0,97791.0,0.79933368]
[1739626220301,8.2e-07,97792.0,97791.0,0.79933368]
[1739626220581,8.2e-07,97792.0,97791.0,5.57077368]
[1739626220785,8.2e-07,97792.0,97791.0,0.79933368]
[1739626220983,8.2e-07,97792.0,97791.0,0.87653368]
[1739626221194,6e-08,97814.0,97813.0,0.303353]
[1739626221400,6e-08,97814.0,97813.0,0.42885665]
[1739626221616,6e-08,97814.0,97813.0,0.43517407]
[1739626222036,6e-08,97814.0,97813.0,0.63757407]
[1739626222823,6e-08,97814.0,97813.0,0.63857407]
[1739626225063,0.00010656,97814.0,97813.0,0.63857407]
[1739626225920,0.00010656,97814.0,97813.0,0.46557407]
[1739626226124,0.00010656,97814.0,97813.0,0.36307042]
[1739626226300,0.00010656,97814.0,97813.0,0.36124951]
[1739626226502,0.00010656,97814.0,97813.0,0.51124951]
[1739626227108,0.00010656,97814.0,97813.0,0.53324951]
[1739626227312,0.00010656,97814.0,97813.0,0.53424951]
[1739626227860,0.00010656,97814.0,97813.0,0.53324951]
[1739626228234,0.00110656,97814.0,97813.0,0.53324951]
[1739626229523,0.00010656,97814.0,97813.0,0.53324951]
[1739626229874,0.00110656,97814.0,97813.0,0.53324951]
[1739626230096,0.00110656,97814.0,97813.0,0.63575316]
[1739626230499,0.00010656,97814.0,97813.0,0.63575316]
[1739626231362,0.00110656,97814.0,97813.0,0.63575316]
[1739626236818,0.00110656,97814.0,97813.0,0.63597681]
[1739626245801,0.00010656,97814.0,97813.0,0.63597681]
[1739626246006,0.00110656,97814.0,97813.0,0.63597681]
[1739626255473,0.00110656,97814.0,97813.0,0.66549058]
[1739626256096,0.00110656,97814.0,97813.0,0.63597681]
[1739626256300,0.00110656,97814.0,97813.0,0.66549059]
[1739626256596,0.00110656,97814.0,97813.0,0.63597681]
[1739626256802,0.00110656,97814.0,97813.0,0.66549006]
[1739626258594,6e-08,97822.0,97814.0,0.173]
[1739626258795,7.6e-07,97823.0,97822.0,0.326339]
[1739626258998,0.0001065,97827.0,97826.0,0.303333]
[1739626259200,0.0001065,97827.0,97826.0,0.4333556]
[1739626260365,0.0001065,97827.0,97826.0,0.6357156]
[1739626261948,0.0011065,97827.0,97826.0,0.6357156]
[1739626262163,0.0021065,97827.0,97826.0,0.6357156]
[1739626287612,0.0011065,97827.0,97826.0,0.6357156]
[1739626288051,0.0011065,97827.0,97826.0,0.6367156]
[1739626288327,0.0001065,97827.0,97826.0,0.66623027]
[1739626288527,0.0001065,97827.0,97826.0,0.66723027]
[1739626296600,0.0001065,97827.0,97826.0,0.6367156]
[1739626297258,0.0001065,97827.0,97826.0,0.6357156]
[1739626298217,0.0001065,97827.0,97826.0,0.6367156]
[1739626298994,0.0001065,97827.0,97826.0,0.53321195]
[1739626299395,0.0001065,97827.0,97826.0,0.36021195]
[1739626299534,0.0761065,97827.0,97826.0,0.36021195]
[1739626300641,0.0771065,97827.0,97826.0,0.36021195]
[1739626301613,0.0791065,97827.0,97826.0,0.36021195]
[1739626302019,0.0791065,97827.0,97826.0,0.20687895]
[1739626303979,0.2324375,97827.0,97826.0,0.20687895]
[1739626304181,0.2806375,97827.0,97826.0,0.20687895]
[1739626304940,0.38014115,97827.0,97826.0,0.20687895]
[1739626305123,0.38414115,97827.0,97826.0,0.20687895]
[1739626305465,0.38914115,97827.0,97826.0,0.20687895]
[1739626306019,0.38414115,97827.0,97826.0,0.20687895]
[1739626306251,0.38914115,97827.0,97826.0,0.20787895]
[1739626306460,0.38514115,97827.0,97826.0,0.20787895]
[1739626306660,0.39214115,97827.0,97826.0,0.20887895]
[1739626312626,0.71534115,97827.0,97826.0,0.20887895]
[1739626312958,0.71534115,97827.0,97826.0,0.20436]
[1739626313364,0.72534115,97827.0,97826.0,0.20436]
[1739626314383,0.72034115,97827.0,97826.0,0.20336]
[1739626315290,0.71334115,97827.0,97826.0,0.20236]
[1739626315490,0.72034115,97827.0,97826.0,0.20336]
[1739626316521,0.72734115,97827.0,97826.0,0.20336]
[1739626316723,0.72034115,97827.0,97826.0,0.20336]
[1739626317139,0.72734115,97827.0,97826.0,0.20336]
[1739626317562,0.88734115,97827.0,97826.0,0.20336]
[1739626317966,0.88734115,97827.0,97826.0,0.001]
[1739626320117,0.9898448,97827.0,97826.0,0.001]
[1739626320566,0.88734115,97827.0,97826.0,0.001]
[1739626321286,0.323336,97824.0,97823.0,0.00022365]
[1739626321487,0.55643965,97824.0,97823.0,0.00022365]
[1739626321640,0.55643965,97824.0,97813.0,0.00022365]
[1739626321641,0.173352,97814.0,97813.0,0.00022365]
[1739626321840,1.04400791,97814.0,97813.0,6.5e-07]
[1739626322046,1.04272945,97814.0,97813.0,6.5e-07]
[1739626322649,0.96405565,97814.0,97813.0,6.5e-07]
[1739626324042,0.97105565,97814.0,97813.0,6.5e-07]
[1739626324602,0.97805565,97814.0,97813.0,6.5e-07]
[1739626327402,1.30125565,97814.0,97813.0,6.5e-07]
[1739626334476,1.19365565,97814.0,97813.0,6.5e-07]
[1739626334907,1.2961593,97814.0,97813.0,6.5e-07]
[1739626338735,1.19365565,97814.0,97813.0,6.5e-07]
[1739626340095,1.33304393,97814.0,97813.0,6.5e-07]
[1739626341348,1.33315043,97814.0,97813.0,6.5e-07]
[1739626356775,0.63495043,97814.0,97813.0,6.5e-07]
[1739626356984,0.62495043,97814.0,97813.0,6.5e-07]
[1739626357363,0.59316215,97814.0,97813.0,6.5e-07]
[1739626358223,0.58616215,97814.0,97813.0,6.5e-07]
[1739626358422,0.59316215,97814.0,97813.0,6.5e-07]
[1739626358676,0.58616215,97814.0,97813.0,6.5e-07]
[1739626358865,0.59316215,97814.0,97813.0,6.5e-07]
[1739626359127,0.58616215,97814.0,97813.0,6.5e-07]
[1739626359328,0.59316215,97814.0,97813.0,6.5e-07]
[1739626359534,0.60016215,97814.0,97813.0,6.5e-07]
[1739626366071,0.60016215,97814.0,97813.0,0.07910065]
[1739626367647,0.60016215,97814.0,97813.0,6.5e-07]
[1739626369281,0.44681015,97814.0,97813.0,0.23245365]
[1739626369409,0.44681015,97814.0,97813.0,0.28784147]
[1739626369813,0.44681015,97814.0,97813.0,0.13448847]
[1739626370018,0.4976585,97814.0,97813.0,0.13448847]
[1739626370289,0.4836585,97814.0,97813.0,0.13448847]
[1739626370497,0.4836585,97814.0,97813.0,0.12840065]
[1739626370696,0.4906585,97814.0,97813.0,0.12840065]
[1739626370983,0.4836585,97814.0,97813.0,0.12840065]
[1739626371118,0.3373065,97814.0,97813.0,0.13446567]
[1739626371738,0.3373065,97814.0,97813.0,0.12840065]
[1739626372253,0.3373065,97814.0,97813.0,0.13446567]
[1739626373125,0.4906585,97814.0,97813.0,0.13446567]
[1739626373531,0.4906585,97814.0,97813.0,0.12840065]
[1739626374079,0.4906585,97814.0,97813.0,0.07910065]
[1739626375787,0.59316215,97814.0,97813.0,0.07910065]
[1739626376165,0.59316215,97814.0,97813.0,6.5e-07]
[1739626376337,0.3373065,97814.0,97813.0,6.5e-07]
[1739626376481,0.3373065,97814.0,97813.0,0.07910065]
[1739626376677,0.3373065,97814.0,97813.0,0.08515551]
[1739626377164,0.3303065,97814.0,97813.0,0.08515551]
[1739626377407,0.3233065,97814.0,97813.0,0.08515551]
[1739626377605,0.3303065,97814.0,97813.0,0.08515551]
[1739626377766,0.3373065,97814.0,97813.0,0.08515551]
[1739626379357,0.0141065,97814.0,97813.0,0.23850851]
[1739626380740,0.0141065,97814.0,97813.0,0.28400851]
[1739626384685,0.0071065,97814.0,97813.0,0.28400851]
[1739626385049,0.0121065,97814.0,97813.0,0.28400851]
[1739626385428,0.0051065,97814.0,97813.0,0.28400851]
[1739626385854,0.0101065,97814.0,97813.0,0.28400851]
[1739626390479,0.0101065,97814.0,97813.0,0.43400851]
[1739626391322,0.0101065,97814.0,97813.0,0.55951216]
[1739626391609,0.0001065,97814.0,97813.0,0.55951216]
[1739626392062,0.0031065,97814.0,97813.0,0.55951216]
[1739626392221,0.0031065,97814.0,97813.0,0.45700851]
[1739626392589,0.0001065,97814.0,97813.0,0.45700851]
[1739626393013,0.0001065,97814.0,97813.0,0.45900851]
[1739626393419,0.0031065,97814.0,97813.0,0.45900851]
[1739626393702,0.0031065,97814.0,97813.0,0.46100851]
[1739626393901,0.0001065,97814.0,97813.0,0.46100851]
[1739626395073,0.0001065,97814.0,97813.0,0.45700851]
[1739626395302,0.0001065,97814.0,97813.0,0.45900851]
[1739626398583,0.0001065,97814.0,97813.0,0.45700851]
[1739626398904,0.0001065,97814.0,97813.0,0.45900851]
[1739626400314,0.0001065,97814.0,97813.0,0.56151216]
[1739626401119,0.0001065,97814.0,97813.0,0.55951216]
[1739626401521,0.0001065,97814.0,97813.0,0.56151216]
[1739626401689,0.0001065,97814.0,97813.0,0.45900851]
[1739626401891,0.0001065,97814.0,97813.0,0.24050851]
[1739626402318,0.0001065,97814.0,97813.0,0.23850851]
[1739626402742,0.0001065,97814.0,97813.0,0.23950851]
[1739626402944,0.0001065,97814.0,97813.0,0.23850851]
[1739626403357,0.0031065,97814.0,97813.0,0.23850851]
[1739626403927,0.0031065,97814.0,97813.0,0.26150851]
[1739626404126,0.0031065,97814.0,97813.0,0.41150851]
[1739626404333,0.0061065,97814.0,97813.0,0.41150851]
[1739626404515,0.0031065,97814.0,97813.0,0.41150851]
[1739626404716,0.0061065,97814.0,97813.0,0.41150851]
[1739626404920,0.0031065,97814.0,97813.0,0.41150851]
[1739626405120,0.0001065,97814.0,97813.0,0.41150851]
[1739626409030,0.0001065,97814.0,97813.0,0.51401216]
[1739626409438,0.0001065,97814.0,97813.0,0.56121216]
[1739626413713,0.0011065,97814.0,97813.0,0.56121216]
[1739626414089,0.0011065,97814.0,97813.0,0.56521216]
[1739626417282,5e-07,97814.0,97813.0,0.56521216]
[1739626418519,5e-07,97814.0,97813.0,0.5856563]
[1739626419999,5e-07,97814.0,97813.0,0.58943293]
[1739626422540,5e-07,97814.0,97813.0,0.91413293]
[1739626422887,0.000107,97814.0,97813.0,0.91413293]
[1739626423875,0.000107,97814.0,97813.0,0.89368879]
[1739626428007,0.0001065,97814.0,97813.0,0.74190946]
[1739626428145,0.0011065,97814.0,97813.0,0.76736887]
[1739626428351,0.0011065,97814.0,97813.0,0.41566887]
[1739626428550,0.0001065,97814.0,97813.0,0.41566887]
[1739626429571,0.0001065,97814.0,97813.0,0.43381457]
[1739626429777,0.0001065,97814.0,97813.0,0.43781457]
[1739626429916,0.0001065,97814.0,97813.0,0.43381457]
[1739626430157,0.0001065,97814.0,97813.0,0.43581457]
[1739626430394,0.0001065,97814.0,97813.0,0.43081457]
[1739626430639,0.0001065,97814.0,97813.0,0.51351457]
[1739626430886,0.0001065,97814.0,97813.0,0.51551457]
[1739626431090,0.0001065,97814.0,97813.0,0.55681457]
[1739626431306,5e-07,97814.0,97813.0,4.25431457]
[1739626431499,5e-07,97814.0,97813.0,0.55881457]
[1739626432871,5e-07,97814.0,97813.0,0.55681457]
[1739626433487,5e-07,97814.0,97813.0,0.55881457]
[1739626433916,5e-07,97814.0,97813.0,0.58833413]
[1739626434347,5e-07,97814.0,97813.0,0.91303413]
[1739626435210,5e-07,97814.0,97813.0,0.91325778]
[1739626450198,5e-07,97814.0,97813.0,0.91125778]
[1739626450402,5e-07,97814.0,97813.0,0.91325778]
[1739626450604,5e-07,97814.0,97813.0,0.91725778]
[1739626450865,1e-06,97827.0,97826.0,0.153333]
[1739626451081,1e-06,97827.0,97826.0,0.53535621]
[1739626451300,1e-06,97827.0,97826.0,0.54126032]
[1739626452006,1e-06,97827.0,97826.0,0.74362032]
[1739626453700,1e-06,97827.0,97826.0,0.75062032]
[1739626453902,1e-06,97827.0,97826.0,0.74762032]
[1739626454105,1e-06,97827.0,97826.0,0.74362032]
[1739626454301,1e-06,97827.0,97826.0,0.74662032]
[1739626454551,1e-06,97827.0,97826.0,0.75062032]
[1739626455207,1e-06,97827.0,97826.0,1.07532032]
[1739626458123,1e-06,97827.0,97826.0,1.09568145]
[1739626459890,1e-06,97827.0,97826.0,0.98916189]
[1739626463178,1e-06,97827.0,97826.0,1.01864451]
[1739626463509,1e-06,97827.0,97826.0,0.98916189]
[1739626464173,1e-06,97827.0,97826.0,1.01865062]
[1739626464938,1e-06,97827.0,97826.0,0.98916189]
[1739626467563,1e-06,97827.0,97826.0,0.96880076]
[1739626469844,1e-06,97827.0,97826.0,0.99831457]
[1739626470039,1e-06,97827.0,97826.0,0.96880076]
[1739626470632,1e-06,97827.0,97826.0,0.98921737]
[1739626473662,1e-06,97827.0,97826.0,1.01873809]
[1739626474486,1e-06,97827.0,97826.0,0.98921737]
[1739626474661,1e-06,97827.0,97826.0,1.1004376]
[1739626479999,1e-06,97827.0,97826.0,2.1004376]
[1739626480778,1e-06,97827.0,97826.0,6.8718776]
[1739626480975,0.90196684,97835.0,97826.0,6.8718776]
[1739626480976,0.90192784,97835.0,97834.0,0.32632]
[1739626481222,0.90192784,97835.0,97834.0,0.87062223]
[1739626481601,0.90192784,97835.0,97834.0,0.86905851]
[1739626482351,0.90192784,97835.0,97834.0,0.87105851]
[1739626482618,0.90192784,97835.0,97834.0,0.86905851]
[1739626482823,0.90192784,97835.0,97834.0,0.78735851]
[1739626482992,0.90292784,97835.0,97834.0,0.79335851]
[1739626483180,0.90292784,97835.0,97834.0,0.80035851]
[1739626483521,0.90292784,97835.0,97834.0,0.79335851]
[1739626483843,0.90297125,97835.0,97834.0,0.79935851]
[1739626484230,0.90297125,97835.0,97834.0,0.84605851]
[1739626485237,0.90197125,97835.0,97834.0,0.84005851]
[1739626485391,0.90197125,97835.0,97834.0,0.84705851]
[1739626485764,0.86108525,97835.0,97834.0,0.84705851]
[1739626485970,0.79975625,97835.0,97834.0,0.84105851]
[1739626486162,0.71798425,97835.0,97834.0,0.81053828]
[1739626486492,0.71798425,97835.0,97834.0,0.81153828]
[1739626486696,0.71798425,97835.0,97834.0,0.81753828]
[1739626486950,0.71798425,97835.0,97834.0,0.81053828]
[1739626487157,0.71798425,97835.0,97834.0,0.83405516]
[1739626487394,0.71798425,97835.0,97834.0,0.81053828]
[1739626489422,0.71798425,97835.0,97834.0,0.76383828]
[1739626490234,0.23335823,97835.0,97834.0,0.76383828]
[1739626490852,0.23435823,97835.0,97834.0,0.77083828]
[1739626491813,0.17302923,97835.0,97834.0,0.77083828]
[1739626493584,0.13214323,97835.0,97834.0,0.77083828]
[1739626494014,0.13214323,97835.0,97834.0,0.85133828]
[1739626495025,0.13214323,97835.0,97834.0,0.86133828]
[1739626495204,0.13114323,97835.0,97834.0,1.05665828]
[1739626495416,0.13114323,97835.0,97834.0,1.05065828]
[1739626495619,0.13214323,97835.0,97834.0,1.05765828]
[1739626496054,0.13214323,97835.0,97834.0,1.06388193]
[1739626496514,0.10555076,97835.0,97834.0,1.06388193]
[1739626497338,0.10555076,97835.0,97834.0,1.05388193]
[1739626497569,0.10555076,97835.0,97834.0,1.06388193]
[1739626499351,0.10555076,97835.0,97834.0,0.98338193]
[1739626500109,0.00333576,97835.0,97834.0,0.98338193]
[1739626500374,0.00333576,97835.0,97834.0,0.98507691]
[1739626508043,0.08222366,97853.0,97834.0,0.98507691]
[1739626508044,6.6e-07,97853.0,97836.0,0.01]
[1739626508254,6.6e-07,97853.0,97852.0,0.42879565]
[1739626508456,0.00022366,97888.0,97878.0,0.303252]
[1739626508457,0.082,97884.0,97878.0,0.303252]
[1739626508660,0.082,97884.0,97878.0,0.42875565]
[1739626508864,0.01515021,97879.0,97878.0,0.43305493]
[1739626509691,0.01715021,97879.0,97878.0,0.63533493]
[1739626510070,0.01715021,97879.0,97878.0,0.64557926]
[1739626511095,0.01915021,97879.0,97878.0,0.64557926]
[1739626514438,0.01515021,97879.0,97878.0,0.64557926]
[1739626514845,0.01515021,97879.0,97878.0,0.64657926]
[1739626516163,0.01515021,97879.0,97878.0,0.64557926]
[1739626516356,0.01515021,97879.0,97878.0,0.64657926]
[1739626519232,0.01515021,97879.0,97878.0,0.64557926]
[1739626520145,0.01515021,97879.0,97878.0,0.64657926]
[1739626520523,0.01515021,97879.0,97878.0,0.97027926]
[1739626520799,0.01525661,97879.0,97878.0,0.97127926]
[1739626522562,0.01525661,97879.0,97878.0,1.07726531]
[1739626527636,0.01525661,97879.0,97878.0,5.88996116]
[1739626527858,6.1e-07,97879.0,97878.0,5.88996116]
[1739626528112,6.1e-07,97879.0,97878.0,1.11852116]
[1739626529271,6.1e-07,97879.0,97878.0,1.13876222]
[1739626529473,0.00018427,97885.0,97884.0,0.336242]
[1739626529681,0.0001696,97885.0,97884.0,0.57798755]
[1739626529908,4.2e-07,97890.0,97889.0,0.313234]
[1739626530107,4.2e-07,97890.0,97889.0,0.5458237]
[1739626530308,4.2e-07,97900.0,97899.0,0.163219]
[1739626530542,4.2e-07,97900.0,97899.0,1.16242265]
[1739626530878,4.2e-07,97900.0,97899.0,1.31670942]
[1739626531196,4.2e-07,97900.0,97899.0,1.34796527]
[1739626531400,4.2e-07,97900.0,97899.0,1.31670942]
[1739626531623,4.2e-07,97900.0,97899.0,1.39630942]
[1739626532222,0.0001065,97912.0,97911.0,0.01]
[1739626532460,0.0001065,97912.0,97911.0,0.43261977]
[1739626532887,0.0001065,97912.0,97911.0,0.44261977]
[1739626533270,0.0001065,97912.0,97911.0,0.43261977]
[1739626534191,0.0001065,97912.0,97911.0,0.43361977]
[1739626534603,0.0001065,97912.0,97911.0,0.63581977]
[1739626534813,0.0001065,97912.0,97911.0,0.64581977]
[1739626535010,0.0001065,97912.0,97911.0,0.63581977]
[1739626535206,0.0001065,97912.0,97911.0,2.50941977]
[1739626535423,0.0001065,97912.0,97911.0,2.32831977]
[1739626535864,0.0001065,97912.0,97911.0,2.33831977]
[1739626536272,5e-07,97912.0,97911.0,2.33831977]
[1739626536407,5e-07,97912.0,97911.0,0.97251977]
[1739626536820,7e-05,97931.0,97928.0,0.326173]
[1739626537155,0.00033017,97929.0,97928.0,0.43254103]
[1739626540078,1.7e-07,97931.0,97930.0,0.44252565]
[1739626540487,0.0001065,97933.0,97932.0,0.01]
[1739626540640,0.0001065,97933.0,97932.0,5.21011065]
[1739626540848,0.0001065,97933.0,97932.0,2.32257065]
[1739626541250,0.0001065,97933.0,97932.0,2.40602265]
[1739626542178,0.0001065,97933.0,97932.0,2.32642265]
[1739626542382,0.0001065,97933.0,97932.0,2.32942265]
[1739626542587,0.0001065,97933.0,97932.0,2.32842265]
[1739626543001,0.0001065,97933.0,97932.0,2.33042265]
[1739626543215,0.0001065,97933.0,97932.0,2.33142265]
[1739626543472,0.0001065,97933.0,97932.0,0.28752265]
[1739626543672,0.0001065,97933.0,97932.0,0.28252265]
[1739626544080,0.0001065,97933.0,97932.0,0.29152265]
[1739626544283,0.0001065,97933.0,97932.0,0.61622265]
[1739626544489,0.0001065,97933.0,97932.0,0.59322265]
[1739626544905,0.0001065,97933.0,97932.0,0.26852265]
[1739626545316,0.0001065,97933.0,97932.0,0.26452265]
[1739626545520,0.0001065,97933.0,97932.0,0.25952265]
[1739626545727,0.0001065,97933.0,97932.0,0.40952265]
[1739626545939,0.0001065,97933.0,97932.0,0.28752265]
[1739626546143,0.0001065,97933.0,97932.0,0.29052265]
[1739626546552,0.0001065,97933.0,97932.0,0.43752265]
[1739626546767,0.0001065,97933.0,97932.0,0.43252265]
[1739626549038,0.0001065,97933.0,97932.0,0.63464265]
[1739626551199,0.0001065,97933.0,97932.0,0.382139]
[1739626551741,0.0001065,97933.0,97932.0,0.532139]